[Event "Titled Tuesday Blitz June 6 Early 2023"]
[White "Ibadov, Dashgyn"]
[Black "Ziatdinov, Raset"]
[WhiteFideId "24107514"]
[BlackFideId "2015323"]
[WhiteElo "2208"]
[BlackElo "2220"]
[Result "1-0"]
[Round "5"]
[TimeControl "180+2"]
[Date "2023.06.06"]
[WhiteClock "0:00:15"]
[BlackClock "0:00:20"]
[Board "140"]

1. e4 {[%clk 0:03:00]}  c5 {[%clk 0:02:57]} 2. Nf3 {[%clk 0:03:00]}  e6 {[%clk 0:02:58]} 3. d4 {[%clk 0:03:00]}  cxd4 {[%clk 0:02:59]} 4. Nxd4 {[%clk 0:03:01]}  a6 {[%clk 0:02:59]} 5. Nc3 {[%clk 0:03:02]}  Qc7 {[%clk 0:03:00]} 6. Bd3 {[%clk 0:03:01]}  Bb4 {[%clk 0:03:01]} 7. O-O {[%clk 0:03:00]}  Nf6 {[%clk 0:03:01]} 8. Be3 {[%clk 0:02:43]}  Nc6 {[%clk 0:02:55]} 9. Nxc6 {[%clk 0:02:39]}  bxc6 {[%clk 0:02:52]} 10. f4 {[%clk 0:02:38]}  d5 {[%clk 0:02:53]} 11. exd5 {[%clk 0:02:18]}  cxd5 {[%clk 0:02:51]} 12. Ne2 {[%clk 0:01:50]}  Bb7 {[%clk 0:02:41]} 13. Nd4 {[%clk 0:01:47]}  Ne4 {[%clk 0:02:35]} 14. Qg4 {[%clk 0:01:35]}  O-O {[%clk 0:02:28]} 15. c3 {[%clk 0:01:27]}  Bc5 {[%clk 0:02:28]} 16. Bxe4 {[%clk 0:01:24]}  dxe4 {[%clk 0:02:28]} 17. f5 {[%clk 0:01:22]}  e5 {[%clk 0:02:23]} 18. f6 {[%clk 0:01:18]}  g6 {[%clk 0:02:16]} 19. Nc2 {[%clk 0:00:41]}  Rfd8 {[%clk 0:02:02]} 20. Rae1 {[%clk 0:00:26]}  Rd2 {[%clk 0:02:00]} 21. Bxc5 {[%clk 0:00:25]}  Qxc5+ {[%clk 0:02:00]} 22. Ne3 {[%clk 0:00:25]}  Rad8 {[%clk 0:01:44]} 23. Qg5 {[%clk 0:00:23]}  Rxb2 {[%clk 0:01:39]} 24. Kh1 {[%clk 0:00:22]}  Rd3 {[%clk 0:01:33]} 25. Nf5 {[%clk 0:00:19]}  e3 {[%clk 0:01:24]} 26. Ne7+ {[%clk 0:00:19]}  Kh8 {[%clk 0:01:20]} 27. Qh6 {[%clk 0:00:14]}  Bxg2+ {[%clk 0:01:18]} 28. Kg1 {[%clk 0:00:15]}  e2+ {[%clk 0:00:27]} 29. Rf2 {[%clk 0:00:15]}  Qxf2+ {[%clk 0:00:19]} 30. Kxf2 {[%clk 0:00:15]}  Rf3+ {[%clk 0:00:20]} 31. Kxg2 {[%clk 0:00:15]} 1-0


[Site "https://www.chess.com"]

[Event "Titled Tuesday Blitz June 6 Early 2023"]
[White "Pavlidou, Ekaterini"]
[Black "Goryachkina, Aleksandra"]
[WhiteFideId "4213262"]
[BlackFideId "4147103"]
[WhiteElo "2126"]
[BlackElo "2471"]
[Result "0-1"]
[Round "5"]
[TimeControl "180+2"]
[Date "2023.06.06"]
[WhiteClock "0:00:07"]
[BlackClock "0:00:07"]
[Board "141"]

1. d4 {[%clk 0:03:00]}  Nf6 {[%clk 0:02:59]} 2. c4 {[%clk 0:03:01]}  e6 {[%clk 0:02:59]} 3. Nc3 {[%clk 0:03:01]}  Bb4 {[%clk 0:02:57]} 4. e3 {[%clk 0:03:01]}  O-O {[%clk 0:02:56]} 5. Bd3 {[%clk 0:03:00]}  c5 {[%clk 0:02:54]} 6. Ne2 {[%clk 0:03:00]}  cxd4 {[%clk 0:02:48]} 7. exd4 {[%clk 0:03:00]}  d5 {[%clk 0:02:45]} 8. a3 {[%clk 0:02:59]}  Be7 {[%clk 0:02:25]} 9. O-O {[%clk 0:02:57]}  dxc4 {[%clk 0:02:18]} 10. Bxc4 {[%clk 0:02:57]}  Nbd7 {[%clk 0:02:18]} 11. Bg5 {[%clk 0:02:53]}  Nb6 {[%clk 0:02:16]} 12. Ba2 {[%clk 0:02:53]}  h6 {[%clk 0:02:16]} 13. Bh4 {[%clk 0:02:50]}  Nfd5 {[%clk 0:02:16]} 14. Bg3 {[%clk 0:02:49]}  Bd7 {[%clk 0:02:10]} 15. Rc1 {[%clk 0:02:47]}  Rc8 {[%clk 0:02:07]} 16. Bb1 {[%clk 0:02:46]}  Bc6 {[%clk 0:02:02]} 17. Ne4 {[%clk 0:02:37]}  Nf6 {[%clk 0:01:51]} 18. Nc5 {[%clk 0:02:24]}  Nbd5 {[%clk 0:01:50]} 19. b4 {[%clk 0:02:19]}  b6 {[%clk 0:01:49]} 20. Nd3 {[%clk 0:02:14]}  Bb5 {[%clk 0:01:49]} 21. Rxc8 {[%clk 0:02:02]}  Qxc8 {[%clk 0:01:50]} 22. Qd2 {[%clk 0:01:57]}  Qa6 {[%clk 0:01:45]} 23. Nef4 {[%clk 0:01:16]}  Qxa3 {[%clk 0:01:25]} 24. Rc1 {[%clk 0:01:05]}  Nxf4 {[%clk 0:01:05]} 25. Bxf4 {[%clk 0:01:03]}  Bxd3 {[%clk 0:01:05]} 26. Bxd3 {[%clk 0:01:02]}  Bxb4 {[%clk 0:01:04]} 27. Qd1 {[%clk 0:00:57]}  Nd5 {[%clk 0:00:48]} 28. Be5 {[%clk 0:00:47]}  Rd8 {[%clk 0:00:41]} 29. Ra1 {[%clk 0:00:44]}  Qc3 {[%clk 0:00:35]} 30. Rc1 {[%clk 0:00:40]}  Qd2 {[%clk 0:00:34]} 31. Qf1 {[%clk 0:00:36]}  a5 {[%clk 0:00:30]} 32. Rd1 {[%clk 0:00:30]}  Qg5 {[%clk 0:00:30]} 33. f4 {[%clk 0:00:29]}  Qe7 {[%clk 0:00:29]} 34. f5 {[%clk 0:00:22]}  f6 {[%clk 0:00:08]} 35. fxe6 {[%clk 0:00:18]}  fxe5 {[%clk 0:00:09]} 36. Qf5 {[%clk 0:00:18]}  Nf6 {[%clk 0:00:09]} 37. dxe5 {[%clk 0:00:18]}  Qc5+ {[%clk 0:00:06]} 38. Kh1 {[%clk 0:00:18]}  Bc3 {[%clk 0:00:05]} 39. exf6 {[%clk 0:00:15]}  Qxf5 {[%clk 0:00:05]} 40. e7 {[%clk 0:00:13]}  Rxd3 {[%clk 0:00:04]} 41. e8=Q+ {[%clk 0:00:13]}  Kh7 {[%clk 0:00:04]} 42. Rg1 {[%clk 0:00:11]}  Qxf6 {[%clk 0:00:05]} 43. Qe4+ {[%clk 0:00:11]}  Qg6 {[%clk 0:00:05]} 44. Qb7 {[%clk 0:00:11]}  Bd4 {[%clk 0:00:05]} 45. Rf1 {[%clk 0:00:08]}  Bc5 {[%clk 0:00:06]} 46. Qa8 {[%clk 0:00:06]}  Rd2 {[%clk 0:00:06]} 47. Re1 {[%clk 0:00:06]}  a4 {[%clk 0:00:06]} 48. Rf1 {[%clk 0:00:06]}  a3 {[%clk 0:00:06]} 49. Re1 {[%clk 0:00:06]}  a2 {[%clk 0:00:06]} 50. Rf1 {[%clk 0:00:07]}  Rb2 {[%clk 0:00:07]} 0-1


[Site "https://www.chess.com"]

[Event "Titled Tuesday Blitz June 6 Early 2023"]
[White "Vifleemskaia, Svetlana"]
[Black "Perske, Thore"]
[WhiteFideId "4129490"]
[BlackFideId "12902195"]
[WhiteElo "1930"]
[BlackElo "2336"]
[Result "0-1"]
[Round "5"]
[TimeControl "180+2"]
[Date "2023.06.06"]
[WhiteClock "0:00:31"]
[BlackClock "0:01:17"]
[Board "143"]

1. d4 {[%clk 0:03:00]}  Nf6 {[%clk 0:02:59]} 2. c4 {[%clk 0:03:01]}  g6 {[%clk 0:02:59]} 3. Nc3 {[%clk 0:03:01]}  Bg7 {[%clk 0:03:00]} 4. e4 {[%clk 0:03:02]}  d6 {[%clk 0:03:00]} 5. Nge2 {[%clk 0:03:03]}  O-O {[%clk 0:03:00]} 6. Ng3 {[%clk 0:03:04]}  a6 {[%clk 0:03:01]} 7. Be2 {[%clk 0:03:03]}  h5 {[%clk 0:03:01]} 8. Bg5 {[%clk 0:03:02]}  c5 {[%clk 0:03:01]} 9. d5 {[%clk 0:03:01]}  b5 {[%clk 0:03:02]} 10. cxb5 {[%clk 0:02:58]}  axb5 {[%clk 0:03:02]} 11. Bxb5 {[%clk 0:02:55]}  Ba6 {[%clk 0:03:02]} 12. a4 {[%clk 0:02:53]}  Nbd7 {[%clk 0:02:59]} 13. O-O {[%clk 0:02:52]}  Ne5 {[%clk 0:02:52]} 14. Qe2 {[%clk 0:02:50]}  Qa5 {[%clk 0:02:48]} 15. Ra3 {[%clk 0:02:46]}  Bxb5 {[%clk 0:02:35]} 16. Nxb5 {[%clk 0:02:21]}  Rfb8 {[%clk 0:02:29]} 17. Bd2 {[%clk 0:02:18]}  Qa6 {[%clk 0:02:28]} 18. h4 {[%clk 0:02:09]}  Rb7 {[%clk 0:02:26]} 19. Bc3 {[%clk 0:02:04]}  Ned7 {[%clk 0:02:22]} 20. Rfa1 {[%clk 0:02:02]}  Nb6 {[%clk 0:02:20]} 21. b3 {[%clk 0:01:52]}  Rc8 {[%clk 0:02:12]} 22. Bb2 {[%clk 0:01:21]}  c4 {[%clk 0:02:06]} 23. b4 {[%clk 0:01:15]}  Nfd7 {[%clk 0:01:56]} 24. Bxg7 {[%clk 0:01:11]}  Kxg7 {[%clk 0:01:56]} 25. Qb2+ {[%clk 0:01:09]}  f6 {[%clk 0:01:55]} 26. Nc3 {[%clk 0:01:08]}  Ne5 {[%clk 0:01:54]} 27. a5 {[%clk 0:01:03]}  Nbd7 {[%clk 0:01:54]} 28. b5 {[%clk 0:01:01]}  Qa7 {[%clk 0:01:49]} 29. b6 {[%clk 0:00:54]}  Qa6 {[%clk 0:01:46]} 30. Nb5 {[%clk 0:00:54]}  Nc5 {[%clk 0:01:41]} 31. Nc7 {[%clk 0:00:49]}  Rcxc7 {[%clk 0:01:40]} 32. bxc7 {[%clk 0:00:49]}  Rxb2 {[%clk 0:01:39]} 33. c8=Q {[%clk 0:00:32]}  Qxc8 {[%clk 0:01:38]} 34. a6 {[%clk 0:00:32]}  Nxa6 {[%clk 0:01:17]} 35. Rxa6 {[%clk 0:00:32]}  Rb1+ {[%clk 0:01:17]} 36. Kh2 {[%clk 0:00:30]}  Rxa1 {[%clk 0:01:17]} 37. Rxa1 {[%clk 0:00:30]}  c3 {[%clk 0:01:17]} 38. Rc1 {[%clk 0:00:31]}  c2 {[%clk 0:01:17]} 0-1


[Site "https://www.chess.com"]

[Event "Titled Tuesday Blitz June 6 Early 2023"]
[White "Vaglio Munoz, Jaime"]
[Black "Do Nascimento,Christian Almeida"]
[WhiteFideId "6500145"]
[BlackFideId "2143801"]
[WhiteElo "2199"]
[BlackElo "2078"]
[Result "1-0"]
[Round "5"]
[TimeControl "180+2"]
[Date "2023.06.06"]
[WhiteClock "0:00:55"]
[BlackClock "0:00:07"]
[Board "144"]

1. Nf3 {[%clk 0:02:54]}  Nf6 {[%clk 0:02:59]} 2. c4 {[%clk 0:02:52]}  c5 {[%clk 0:02:59]} 3. b3 {[%clk 0:02:52]}  Nc6 {[%clk 0:02:59]} 4. Bb2 {[%clk 0:02:52]}  g6 {[%clk 0:02:59]} 5. g3 {[%clk 0:02:52]}  Bg7 {[%clk 0:02:59]} 6. Bg2 {[%clk 0:02:52]}  O-O {[%clk 0:03:00]} 7. O-O {[%clk 0:02:52]}  d6 {[%clk 0:03:00]} 8. d4 {[%clk 0:02:52]}  cxd4 {[%clk 0:03:00]} 9. Nxd4 {[%clk 0:02:52]}  Bd7 {[%clk 0:03:01]} 10. Nd2 {[%clk 0:02:43]}  Qc8 {[%clk 0:02:55]} 11. Re1 {[%clk 0:02:40]}  Nxd4 {[%clk 0:02:50]} 12. Bxd4 {[%clk 0:02:39]}  Bc6 {[%clk 0:02:48]} 13. e4 {[%clk 0:02:39]}  a5 {[%clk 0:02:48]} 14. a3 {[%clk 0:02:37]}  Nd7 {[%clk 0:01:59]} 15. Nf3 {[%clk 0:02:32]}  Ne5 {[%clk 0:01:50]} 16. Nxe5 {[%clk 0:02:30]}  dxe5 {[%clk 0:01:45]} 17. Bc3 {[%clk 0:02:29]}  Qe6 {[%clk 0:01:42]} 18. Qd2 {[%clk 0:02:25]}  Rfd8 {[%clk 0:01:40]} 19. Qb2 {[%clk 0:02:24]}  a4 {[%clk 0:01:39]} 20. Rac1 {[%clk 0:02:10]}  axb3 {[%clk 0:01:39]} 21. Qxb3 {[%clk 0:02:09]}  Rd3 {[%clk 0:01:31]} 22. Bf1 {[%clk 0:02:03]}  Rdd8 {[%clk 0:01:10]} 23. Qb2 {[%clk 0:01:58]}  h5 {[%clk 0:01:03]} 24. h4 {[%clk 0:01:50]}  Bf6 {[%clk 0:01:02]} 25. Kh2 {[%clk 0:01:49]}  Ra4 {[%clk 0:00:47]} 26. Bb4 {[%clk 0:01:43]}  Qg4 {[%clk 0:00:37]} 27. Bh3 {[%clk 0:01:31]}  Qf3 {[%clk 0:00:30]} 28. Re3 {[%clk 0:01:30]}  Bxe4 {[%clk 0:00:23]} 29. Rxf3 {[%clk 0:01:28]}  Bxf3 {[%clk 0:00:24]} 30. Qb3 {[%clk 0:01:27]}  Rxb4 {[%clk 0:00:19]} 31. axb4 {[%clk 0:01:25]}  e4 {[%clk 0:00:20]} 32. c5 {[%clk 0:01:20]}  Rd2 {[%clk 0:00:18]} 33. Kg1 {[%clk 0:01:19]}  Bd4 {[%clk 0:00:18]} 34. Rc2 {[%clk 0:01:11]}  Bxf2+ {[%clk 0:00:17]} 35. Kf1 {[%clk 0:01:10]}  e3 {[%clk 0:00:09]} 36. Rxd2 {[%clk 0:01:01]}  exd2 {[%clk 0:00:10]} 37. Kxf2 {[%clk 0:01:01]}  d1=Q {[%clk 0:00:10]} 38. Qxd1 {[%clk 0:01:01]}  Bxd1 {[%clk 0:00:10]} 39. Bg2 {[%clk 0:01:01]}  Kf8 {[%clk 0:00:09]} 40. Bxb7 {[%clk 0:01:01]}  Ke8 {[%clk 0:00:09]} 41. b5 {[%clk 0:01:02]}  Kd8 {[%clk 0:00:09]} 42. b6 {[%clk 0:01:02]}  Ba4 {[%clk 0:00:08]} 43. Bd5 {[%clk 0:01:02]}  e6 {[%clk 0:00:06]} 44. Bf3 {[%clk 0:01:02]}  Kd7 {[%clk 0:00:06]} 45. Ke3 {[%clk 0:01:02]}  Bc6 {[%clk 0:00:06]} 46. Be2 {[%clk 0:01:01]}  f6 {[%clk 0:00:06]} 47. Kd4 {[%clk 0:01:01]}  g5 {[%clk 0:00:06]} 48. Bxh5 {[%clk 0:00:59]}  gxh4 {[%clk 0:00:07]} 49. gxh4 {[%clk 0:00:59]}  e5+ {[%clk 0:00:07]} 50. Ke3 {[%clk 0:00:59]}  f5 {[%clk 0:00:08]} 51. Bf3 {[%clk 0:00:58]}  f4+ {[%clk 0:00:07]} 52. Ke2 {[%clk 0:00:58]}  e4 {[%clk 0:00:08]} 53. Bg4+ {[%clk 0:00:58]}  Ke7 {[%clk 0:00:08]} 54. h5 {[%clk 0:00:58]}  Kf6 {[%clk 0:00:08]} 55. Bc8 {[%clk 0:00:56]}  e3 {[%clk 0:00:08]} 56. b7 {[%clk 0:00:55]}  Bb5+ {[%clk 0:00:07]} 57. Kf3 {[%clk 0:00:55]}  e2 {[%clk 0:00:07]} 58. Kf2 {[%clk 0:00:55]} 1-0


[Site "https://www.chess.com"]

[Event "Titled Tuesday Blitz June 6 Early 2023"]
[White "Escanor89"]
[Black "Sarkar, Justin"]
[BlackFideId "2010011"]
[WhiteElo "2533"]
[BlackElo "2151"]
[Result "1-0"]
[Round "5"]
[TimeControl "180+2"]
[Date "2023.06.06"]
[WhiteClock "0:00:14"]
[BlackClock "0:00:01"]
[Board "145"]

1. e4 {[%clk 0:03:00]}  e5 {[%clk 0:02:53]} 2. Nf3 {[%clk 0:03:00]}  Nc6 {[%clk 0:02:50]} 3. Bc4 {[%clk 0:03:00]}  Be7 {[%clk 0:02:49]} 4. O-O {[%clk 0:02:55]}  d6 {[%clk 0:02:46]} 5. c3 {[%clk 0:02:53]}  Nf6 {[%clk 0:02:31]} 6. d3 {[%clk 0:02:51]}  O-O {[%clk 0:02:20]} 7. Bb3 {[%clk 0:02:51]}  Na5 {[%clk 0:02:19]} 8. Bc2 {[%clk 0:02:51]}  c5 {[%clk 0:02:19]} 9. Nbd2 {[%clk 0:02:50]}  Nc6 {[%clk 0:02:14]} 10. a4 {[%clk 0:02:47]}  Re8 {[%clk 0:02:07]} 11. Re1 {[%clk 0:02:46]}  Bf8 {[%clk 0:02:01]} 12. Nc4 {[%clk 0:02:43]}  d5 {[%clk 0:01:53]} 13. exd5 {[%clk 0:02:39]}  Qxd5 {[%clk 0:01:53]} 14. Bg5 {[%clk 0:02:16]}  Bg4 {[%clk 0:01:38]} 15. Re3 {[%clk 0:02:01]}  Nd7 {[%clk 0:01:25]} 16. Bb3 {[%clk 0:01:58]}  Bxf3 {[%clk 0:00:57]} 17. Rxf3 {[%clk 0:01:45]}  e4 {[%clk 0:00:50]} 18. Ne3 {[%clk 0:01:03]}  Qxg5 {[%clk 0:00:45]} 19. Rxf7 {[%clk 0:01:03]}  Kh8 {[%clk 0:00:22]} 20. Rxd7 {[%clk 0:01:02]}  Ne5 {[%clk 0:00:22]} 21. Rd5 {[%clk 0:00:56]}  exd3 {[%clk 0:00:16]} 22. Qxd3 {[%clk 0:00:44]}  Nxd3 {[%clk 0:00:10]} 23. Rxg5 {[%clk 0:00:43]}  Nxb2 {[%clk 0:00:08]} 24. Rd5 {[%clk 0:00:40]}  c4 {[%clk 0:00:05]} 25. Rb1 {[%clk 0:00:26]}  cxb3 {[%clk 0:00:02]} 26. Rxb2 {[%clk 0:00:26]}  Rad8 {[%clk 0:00:02]} 27. Rxd8 {[%clk 0:00:25]}  Rxd8 {[%clk 0:00:01]} 28. Rxb3 {[%clk 0:00:25]}  Bc5 {[%clk 0:00:01]} 29. Rxb7 {[%clk 0:00:20]}  h6 {[%clk 0:00:02]} 30. h3 {[%clk 0:00:16]}  Rd3 {[%clk 0:00:01]} 31. Nf5 {[%clk 0:00:14]} 1-0


[Site "https://www.chess.com"]

[Event "Titled Tuesday Blitz June 6 Early 2023"]
[White "Rodriguez Santiago, Jaime"]
[Black "Bilan, Danila"]
[WhiteFideId "3100898"]
[BlackFideId "24161918"]
[WhiteElo "2025"]
[BlackElo "2146"]
[Result "0-1"]
[Round "5"]
[TimeControl "180+2"]
[Date "2023.06.06"]
[WhiteClock "0:00:11"]
[BlackClock "0:00:05"]
[Board "147"]

1. c4 {[%clk 0:03:00]}  c6 {[%clk 0:02:57]} 2. d4 {[%clk 0:03:00]}  d5 {[%clk 0:02:58]} 3. cxd5 {[%clk 0:03:00]}  cxd5 {[%clk 0:02:58]} 4. Bf4 {[%clk 0:03:00]}  Nf6 {[%clk 0:02:58]} 5. e3 {[%clk 0:03:01]}  Nc6 {[%clk 0:02:57]} 6. Nc3 {[%clk 0:02:59]}  Bf5 {[%clk 0:02:52]} 7. Qb3 {[%clk 0:02:56]}  Na5 {[%clk 0:02:52]} 8. Qa4+ {[%clk 0:02:56]}  Bd7 {[%clk 0:02:51]} 9. Qc2 {[%clk 0:02:57]}  Rc8 {[%clk 0:02:50]} 10. Rc1 {[%clk 0:02:48]}  e6 {[%clk 0:02:36]} 11. Bd3 {[%clk 0:02:46]}  Nc4 {[%clk 0:02:26]} 12. h3 {[%clk 0:02:32]}  Bb4 {[%clk 0:02:16]} 13. Ne2 {[%clk 0:02:06]}  O-O {[%clk 0:02:00]} 14. O-O {[%clk 0:02:04]}  h6 {[%clk 0:01:53]} 15. a3 {[%clk 0:01:53]}  Be7 {[%clk 0:01:35]} 16. Rfd1 {[%clk 0:01:34]}  a6 {[%clk 0:01:32]} 17. a4 {[%clk 0:01:12]}  Bb4 {[%clk 0:01:27]} 18. b3 {[%clk 0:01:03]}  Nd6 {[%clk 0:01:08]} 19. Qb1 {[%clk 0:00:56]}  Qe7 {[%clk 0:00:35]} 20. Bg3 {[%clk 0:00:39]}  Rc6 {[%clk 0:00:29]} 21. Na2 {[%clk 0:00:35]}  Ba3 {[%clk 0:00:25]} 22. Rxc6 {[%clk 0:00:34]}  Bxc6 {[%clk 0:00:26]} 23. Rd2 {[%clk 0:00:29]}  Nde4 {[%clk 0:00:18]} 24. Rc2 {[%clk 0:00:28]}  Nxg3 {[%clk 0:00:17]} 25. Nxg3 {[%clk 0:00:28]}  Bd6 {[%clk 0:00:17]} 26. Ne2 {[%clk 0:00:28]}  Bb8 {[%clk 0:00:16]} 27. Bxa6 {[%clk 0:00:27]}  Qd6 {[%clk 0:00:15]} 28. Bd3 {[%clk 0:00:25]}  Qh2+ {[%clk 0:00:15]} 29. Kf1 {[%clk 0:00:25]}  Qh1+ {[%clk 0:00:15]} 30. Ng1 {[%clk 0:00:25]}  Bh2 {[%clk 0:00:15]} 31. Ke2 {[%clk 0:00:18]}  Bxg1 {[%clk 0:00:09]} 32. Rc1 {[%clk 0:00:18]}  Qxg2 {[%clk 0:00:08]} 33. Rxg1 {[%clk 0:00:19]}  Qxh3 {[%clk 0:00:08]} 34. Rg3 {[%clk 0:00:19]}  Qh5+ {[%clk 0:00:08]} 35. Kd2 {[%clk 0:00:20]}  Rc8 {[%clk 0:00:07]} 36. Qg1 {[%clk 0:00:18]}  g5 {[%clk 0:00:06]} 37. Nc3 {[%clk 0:00:19]}  Bd7 {[%clk 0:00:05]} 38. Ne2 {[%clk 0:00:17]}  Ne4+ {[%clk 0:00:05]} 39. Bxe4 {[%clk 0:00:17]}  dxe4 {[%clk 0:00:05]} 40. Nf4 {[%clk 0:00:17]}  Qh4 {[%clk 0:00:05]} 41. Ng2 {[%clk 0:00:17]}  Qh5 {[%clk 0:00:06]} 42. Nf4 {[%clk 0:00:16]}  Qh4 {[%clk 0:00:06]} 43. Ne2 {[%clk 0:00:17]}  b5 {[%clk 0:00:06]} 44. Rg4 {[%clk 0:00:17]}  Qh5 {[%clk 0:00:06]} 45. Rxe4 {[%clk 0:00:18]}  bxa4 {[%clk 0:00:06]} 46. bxa4 {[%clk 0:00:18]}  Qg6 {[%clk 0:00:06]} 47. Qg2 {[%clk 0:00:17]}  Bc6 {[%clk 0:00:06]} 48. f3 {[%clk 0:00:13]}  Bxe4 {[%clk 0:00:06]} 49. fxe4 {[%clk 0:00:14]}  Ra8 {[%clk 0:00:05]} 50. Nc3 {[%clk 0:00:12]}  Rb8 {[%clk 0:00:06]} 51. e5 {[%clk 0:00:11]}  Rb2+ {[%clk 0:00:05]} 0-1


[Site "https://www.chess.com"]

[Event "Titled Tuesday Blitz June 6 Early 2023"]
[White "Ginzburg, Yakov"]
[Black "Kuzmin, Ilya"]
[WhiteFideId "4157176"]
[BlackFideId "4153863"]
[WhiteElo "2305"]
[BlackElo "2093"]
[Result "1-0"]
[Round "5"]
[TimeControl "180+2"]
[Date "2023.06.06"]
[WhiteClock "0:00:07"]
[BlackClock "0:00:05"]
[Board "150"]

1. g3 {[%clk 0:02:56]}  d5 {[%clk 0:02:21]} 2. Bg2 {[%clk 0:02:53]}  Nf6 {[%clk 0:02:21]} 3. c4 {[%clk 0:02:53]}  c6 {[%clk 0:02:21]} 4. b3 {[%clk 0:02:52]}  g6 {[%clk 0:02:20]} 5. Bb2 {[%clk 0:02:52]}  Bg7 {[%clk 0:02:21]} 6. Nf3 {[%clk 0:02:52]}  O-O {[%clk 0:02:21]} 7. O-O {[%clk 0:02:52]}  Na6 {[%clk 0:02:20]} 8. d3 {[%clk 0:02:52]}  Nc5 {[%clk 0:02:18]} 9. b4 {[%clk 0:02:44]}  Ne6 {[%clk 0:02:15]} 10. Nbd2 {[%clk 0:02:40]}  Re8 {[%clk 0:02:02]} 11. a4 {[%clk 0:02:38]}  a6 {[%clk 0:02:01]} 12. Qb3 {[%clk 0:02:19]}  Nc7 {[%clk 0:01:57]} 13. Be5 {[%clk 0:02:08]}  h6 {[%clk 0:01:50]} 14. Rfc1 {[%clk 0:02:06]}  Be6 {[%clk 0:01:47]} 15. Nd4 {[%clk 0:01:59]}  dxc4 {[%clk 0:01:39]} 16. dxc4 {[%clk 0:01:52]}  Bd7 {[%clk 0:01:27]} 17. b5 {[%clk 0:01:44]}  axb5 {[%clk 0:01:12]} 18. cxb5 {[%clk 0:01:44]}  Be6 {[%clk 0:00:54]} 19. Qb2 {[%clk 0:00:47]}  Nh5 {[%clk 0:00:31]} 20. Bxg7 {[%clk 0:00:46]}  Nxg7 {[%clk 0:00:30]} 21. bxc6 {[%clk 0:00:45]}  bxc6 {[%clk 0:00:26]} 22. Nxc6 {[%clk 0:00:43]}  Qd6 {[%clk 0:00:20]} 23. Ne4 {[%clk 0:00:40]}  Qd7 {[%clk 0:00:14]} 24. Rd1 {[%clk 0:00:32]}  Qc8 {[%clk 0:00:14]} 25. a5 {[%clk 0:00:26]}  Nd5 {[%clk 0:00:12]} 26. Rac1 {[%clk 0:00:24]}  Qa6 {[%clk 0:00:10]} 27. Nc5 {[%clk 0:00:21]}  Qxc6 {[%clk 0:00:07]} 28. Nxe6 {[%clk 0:00:21]}  Qxe6 {[%clk 0:00:07]} 29. Bxd5 {[%clk 0:00:21]}  Qf6 {[%clk 0:00:06]} 30. Qxf6 {[%clk 0:00:20]}  exf6 {[%clk 0:00:05]} 31. Bxa8 {[%clk 0:00:20]}  Rxa8 {[%clk 0:00:06]} 32. Ra1 {[%clk 0:00:20]}  Ne6 {[%clk 0:00:06]} 33. a6 {[%clk 0:00:18]}  Ra7 {[%clk 0:00:05]} 34. Rd6 {[%clk 0:00:18]}  Kg7 {[%clk 0:00:05]} 35. Kg2 {[%clk 0:00:18]}  f5 {[%clk 0:00:04]} 36. h4 {[%clk 0:00:16]}  h5 {[%clk 0:00:04]} 37. Rb6 {[%clk 0:00:13]}  Nc5 {[%clk 0:00:03]} 38. Rb5 {[%clk 0:00:13]}  Rxa6 {[%clk 0:00:03]} 39. Rxa6 {[%clk 0:00:09]}  Nxa6 {[%clk 0:00:03]} 40. Kf3 {[%clk 0:00:09]}  Nc7 {[%clk 0:00:03]} 41. Rb7 {[%clk 0:00:09]}  Ne6 {[%clk 0:00:04]} 42. Ra7 {[%clk 0:00:08]}  Nd4+ {[%clk 0:00:04]} 43. Ke3 {[%clk 0:00:08]}  Nc2+ {[%clk 0:00:05]} 44. Kd3 {[%clk 0:00:08]}  Ne1+ {[%clk 0:00:05]} 45. Kd2 {[%clk 0:00:08]}  Ng2 {[%clk 0:00:06]} 46. Ra1 {[%clk 0:00:07]}  f4 {[%clk 0:00:06]} 47. Rg1 {[%clk 0:00:07]}  fxg3 {[%clk 0:00:05]} 48. Rxg2 {[%clk 0:00:07]}  gxf2 {[%clk 0:00:05]} 49. Rxf2 {[%clk 0:00:07]} 1-0


[Site "https://www.chess.com"]

[Event "Titled Tuesday Blitz June 6 Early 2023"]
[White "Pg, Mohd Omar Ak Hira"]
[Black "Pinheiro, Iung Alicio de O."]
[WhiteFideId "10500103"]
[BlackFideId "2104350"]
[WhiteElo "2167"]
[BlackElo "2283"]
[Result "0-1"]
[Round "5"]
[TimeControl "180+2"]
[Date "2023.06.06"]
[WhiteClock "0:00:24"]
[BlackClock "0:00:18"]
[Board "151"]

1. e4 {[%clk 0:02:52]}  c5 {[%clk 0:02:55]} 2. Nf3 {[%clk 0:02:50]}  Nc6 {[%clk 0:02:52]} 3. d4 {[%clk 0:02:50]}  cxd4 {[%clk 0:02:53]} 4. Nxd4 {[%clk 0:02:50]}  e5 {[%clk 0:02:54]} 5. Nb5 {[%clk 0:02:50]}  d6 {[%clk 0:02:54]} 6. N1c3 {[%clk 0:02:50]}  a6 {[%clk 0:02:54]} 7. Na3 {[%clk 0:02:50]}  b5 {[%clk 0:02:55]} 8. Nd5 {[%clk 0:02:50]}  Nge7 {[%clk 0:02:55]} 9. Be3 {[%clk 0:02:46]}  Nxd5 {[%clk 0:02:51]} 10. exd5 {[%clk 0:02:25]}  Ne7 {[%clk 0:02:44]} 11. c4 {[%clk 0:02:11]}  Nf5 {[%clk 0:02:41]} 12. cxb5 {[%clk 0:02:04]}  Nxe3 {[%clk 0:02:38]} 13. fxe3 {[%clk 0:02:03]}  Qh4+ {[%clk 0:02:25]} 14. Kd2 {[%clk 0:01:41]}  Qb4+ {[%clk 0:01:53]} 15. Kc1 {[%clk 0:01:40]}  Be7 {[%clk 0:00:57]} 16. Nc2 {[%clk 0:01:35]}  Qc5 {[%clk 0:00:55]} 17. b4 {[%clk 0:01:34]}  Qc7 {[%clk 0:00:50]} 18. e4 {[%clk 0:01:33]}  O-O {[%clk 0:00:49]} 19. Kb2 {[%clk 0:01:27]}  f5 {[%clk 0:00:46]} 20. Bd3 {[%clk 0:01:24]}  axb5 {[%clk 0:00:45]} 21. Ne3 {[%clk 0:01:18]}  fxe4 {[%clk 0:00:44]} 22. Bxe4 {[%clk 0:01:18]}  Rf4 {[%clk 0:00:44]} 23. Qd3 {[%clk 0:00:48]}  Rf2+ {[%clk 0:00:43]} 24. Nc2 {[%clk 0:00:48]}  Bg4 {[%clk 0:00:29]} 25. Bxh7+ {[%clk 0:00:42]}  Kh8 {[%clk 0:00:29]} 26. Bg6 {[%clk 0:00:41]}  e4 {[%clk 0:00:25]} 27. Qxe4 {[%clk 0:00:39]}  Bf6+ {[%clk 0:00:25]} 28. Kb1 {[%clk 0:00:36]}  Qc3 {[%clk 0:00:22]} 29. Kc1 {[%clk 0:00:24]}  Qb2# {[%clk 0:00:18]} 0-1


[Site "https://www.chess.com"]